bitfinex/quotes_ETHUSD_20251028
["timestamp","ask_amount","ask_price","bid_price","bid_amount"]
[1761670999831,7.26617568,4136.4,4136.3,1e-08]
[1761671000099,5.97025134,4136.4,4136.3,1e-08]
[1761671001098,7.26617568,4136.4,4136.3,1e-08]
[1761671001470,5.97025134,4136.4,4136.3,1e-08]
[1761671002030,8.51325134,4136.4,4136.3,1e-08]
[1761671002225,5.97025134,4136.4,4136.3,1e-08]
[1761671002507,6.06701566,4136.4,4136.3,1e-08]
[1761671003283,9.090729,4136.4,4136.3,1e-08]
[1761671003480,8.22701566,4136.4,4136.3,1e-08]
[1761671005616,9.090729,4136.4,4136.3,1e-08]
[1761671005920,8.22701566,4136.4,4136.3,1e-08]
[1761671006692,2.41756116,4136.4,4136.3,1e-08]
[1761671006918,4.57756116,4136.4,4136.3,1e-08]
[1761671007106,5.09617765,4136.4,4136.3,1e-08]
[1761671008482,2.67861649,4136.4,4136.3,1e-08]
[1761671008715,0.51861649,4136.4,4136.3,1e-08]
[1761671008921,2.16,4136.4,4136.3,1e-08]
[1761671009091,4.57756116,4136.4,4136.3,1e-08]
[1761671009415,5.84754334,4136.4,4136.3,1e-08]
[1761671011218,6.49581396,4136.4,4136.3,1e-08]
[1761671011414,5.09617765,4136.4,4136.3,1e-08]
[1761671011580,5.74444827,4136.4,4136.3,1e-08]
[1761671012000,5.74544827,4136.4,4136.3,1e-08]
[1761671015016,5.09717765,4136.4,4136.3,1e-08]
[1761671015609,2.67961649,4136.4,4136.3,1e-08]
[1761671015927,2.93717765,4136.4,4136.3,1e-08]
[1761671016086,0.51961649,4136.4,4136.3,1e-08]
[1761671016990,0.001,4136.4,4136.3,0.24277914]
[1761671017209,0.1218,4136.4,4136.3,1e-08]
[1761671018493,0.1218,4136.4,4136.3,2.41761962]
[1761671021745,0.001,4136.4,4136.3,2.41761962]
[1761671022056,0.001,4136.4,4136.3,3.99699581]
[1761671022198,0.001,4136.4,4136.3,4.09361962]
[1761671022397,0.001,4136.4,4136.3,4.9617538]
[1761671024902,0.001,4136.4,4136.3,7.1207538]
[1761671027333,0.001,4136.4,4136.3,4.9617538]
[1761671027540,0.001,4136.4,4136.3,7.1207538]
[1761671029482,0.001,4136.4,4136.3,4.9617538]
[1761671029784,0.001,4136.4,4136.3,7.1207538]
[1761671031867,0.001,4136.4,4136.3,12.92947353]
[1761671033159,0.001,4136.4,4136.3,10.77047353]
[1761671033352,0.001,4136.4,4136.3,12.92947353]
[1761671037105,0.001,4136.4,4136.3,12.92847353]
[1761671037402,0.001,4136.4,4136.3,1e-08]
[1761671037597,0.001,4136.4,4136.3,2.41761962]
[1761671037761,0.001,4136.4,4136.3,1e-08]
[1761671037958,0.001,4136.4,4136.3,2.41761962]
[1761671039394,0.001,4136.4,4136.3,1e-08]
[1761671039574,0.001,4136.4,4136.3,2.15800001]
[1761671040434,0.001,4136.4,4136.3,1e-08]
[1761671040587,0.36364855,4136.4,4136.3,1e-08]
[1761671040789,0.1218,4136.4,4136.3,1e-08]
[1761671041010,2.53936116,4136.4,4136.3,1e-08]
[1761671042132,0.1218,4136.4,4136.3,1e-08]
[1761671042433,0.001,4136.4,4136.3,1e-08]
[1761671044605,0.1218,4136.4,4136.3,1e-08]
[1761671049249,2.84531328,4136.4,4136.3,1e-08]
[1761671049450,3.36558467,4136.4,4136.3,1e-08]
[1761671053320,4.92078467,4136.4,4136.3,1e-08]
[1761671053522,9.35945854,4136.4,4136.3,1e-08]
[1761671053872,1.47734711,4136.4,4136.3,1e-08]
[1761671054017,0.001,4136.4,4136.3,1e-08]
[1761671056776,2.41856116,4136.4,4136.3,1e-08]
[1761671057558,3.58895615,4136.4,4136.3,1e-08]
[1761671058699,2.93883255,4136.4,4136.3,1e-08]
[1761671059250,3.58895615,4136.4,4136.3,1e-08]
[1761671059562,3.84164486,4136.4,4136.3,1e-08]
[1761671062265,4.49176846,4136.4,4136.3,1e-08]
[1761671062471,4.24714886,4136.4,4136.3,1e-08]
[1761671062672,5.80234886,4136.4,4136.3,1e-08]
[1761671063914,11.65774707,4136.4,4136.3,1e-08]
[1761671064076,11.65774707,4136.4,4136.1,0.01]
[1761671064077,2.82318206,4136.2,4136.1,1e-08]
[1761671064270,2.82329897,4136.0,4135.9,0.002]
[1761671064502,7.90304423,4136.0,4135.9,0.002]
[1761671065175,2.41802882,4135.6,4135.4,0.002]
[1761671065406,11.21097408,4135.6,4135.4,0.002]
[1761671066871,10.69070269,4135.6,4135.4,0.002]
[1761671067093,13.47457053,4135.6,4135.4,0.002]
[1761671067295,13.47479067,4135.6,4135.4,0.002]
[1761671068112,6.7573168,4135.6,4135.4,0.002]
[1761671068405,8.45430132,4135.6,4135.4,0.002]
[1761671068606,9.41758933,4135.6,4135.4,0.002]
[1761671069374,8.55106985,4135.6,4135.4,0.002]
[1761671069893,9.41758933,4135.6,4135.4,0.002]
[1761671070708,8.55106985,4135.6,4135.4,0.002]
[1761671072404,9.20020685,4135.6,4135.4,0.002]
[1761671072720,8.55106985,4135.6,4135.4,0.002]
[1761671073215,9.41758933,4135.6,4135.4,0.002]
[1761671074816,8.55106985,4135.6,4135.4,0.002]
[1761671075410,9.41758933,4135.6,4135.4,0.002]
[1761671078101,9.41758933,4135.6,4134.4,0.05]
[1761671078102,2.41843817,4134.9,4134.4,0.05]
[1761671078320,10.06120789,4134.9,4134.4,0.05]
[1761671078538,11.61640789,4134.9,4134.4,0.05]
[1761671079430,11.71320452,4134.9,4134.4,0.05]
[1761671080128,13.0116413,4134.9,4134.4,0.05]
[1761671080333,12.86593679,4134.9,4134.4,0.05]
[1761671080701,2.82417614,4134.5,4134.4,0.05]
[1761671081041,11.61664186,4134.5,4134.4,0.05]
[1761671082536,11.71344716,4134.5,4134.4,0.05]
[1761671082735,7.80279801,4134.5,4134.4,0.05]
[1761671082943,8.55174994,4134.5,4134.4,0.05]
[1761671083123,13.11122381,4134.5,4134.4,0.05]
[1761671083326,13.97647527,4134.5,4134.4,0.05]
[1761671084002,13.11122381,4134.5,4134.4,0.05]
[1761671084859,14.40941368,4134.5,4134.4,0.05]
[1761671085975,4.37943465,4134.4,4134.3,0.002]
[1761671086120,6.53872401,4134.4,4134.3,0.002]
[1761671086323,6.53872401,4134.4,4133.8,0.002]
[1761671086324,0.405504,4134.1,4133.8,0.002]
[1761671086555,11.61687589,4134.1,4133.8,0.002]
[1761671086856,2.82452719,4133.9,4133.8,0.002]
[1761671087056,3.34431904,4133.9,4133.8,0.002]
[1761671087223,4.74209569,4133.9,4133.8,0.002]
[1761671087758,4.37978571,4133.8,4133.7,1e-08]
[1761671088059,11.61705143,4133.8,4133.7,1e-08]
[1761671088439,4.37990276,4133.6,4133.5,1e-08]
[1761671088625,6.05242688,4133.6,4133.5,1e-08]
[1761671089157,4.37996128,4133.5,4133.3,1e-08]
[1761671089356,11.61728553,4133.4,4133.3,1e-08]
[1761671089557,11.73808553,4133.4,4133.3,1e-08]
[1761671090930,11.73808553,4133.4,4133.1,1e-08]
[1761671090931,4.38013688,4133.2,4133.1,1e-08]
[1761671091164,6.53942624,4133.2,4133.1,1e-08]
[1761671091361,11.09890011,4133.2,4133.1,1e-08]
[1761671091562,8.94019626,4132.2,4131.4,0.05]
[1761671091867,11.61798811,4132.2,4131.4,0.05]
[1761671092043,5.76527247,4132.2,4131.4,0.05]
[1761671092241,8.10360103,4132.2,4131.4,0.05]
[1761671092441,12.6630749,4132.2,4131.4,0.05]
[1761671092668,13.52783313,4132.2,4131.4,0.05]
[1761671092967,12.6630749,4132.2,4131.4,0.05]
[1761671094241,13.52664404,4132.2,4131.4,0.05]
[1761671096177,13.52664404,4132.2,4132.1,1e-08]
[1761671096376,13.52592677,4132.2,4132.1,1e-08]
[1761671096563,9.40073441,4132.2,4132.1,1e-08]
[1761671096764,12.6630749,4132.2,4132.1,1e-08]
[1761671097140,13.9630749,4132.2,4132.1,1e-08]
[1761671097345,4.38113241,4131.5,4131.4,0.05]
[1761671097674,5.54789532,4131.5,4131.4,0.05]
[1761671097877,7.05892426,4131.5,4131.4,0.05]
[1761671098066,3.03709402,4131.5,4131.4,0.05]
[1761671098263,5.19509402,4131.5,4131.4,0.05]
[1761671102993,0.44954204,4132.1,4131.4,5.87704739]
[1761671102994,2.158,4132.1,4131.4,5.87704739]
[1761671103192,0.64697106,4132.5,4131.5,0.58790474]
[1761671103488,0.1208,4131.7,4131.6,2.42036983]
[1761671104059,2.41966577,4132.9,4132.1,2.42007563]
[1761671104284,0.72622959,4132.9,4132.2,5.82704739]
[1761671104487,0.1208,4132.6,4132.3,0.58270474]
[1761671104686,0.1208,4132.6,4132.5,2.41979852]
[1761671104860,2.158,4133.0,4132.7,2.41970334]
[1761671105059,0.1208,4132.9,4132.7,2.41970334]
[1761671105388,0.1208,4132.9,4132.3,0.58270474]
[1761671105389,0.1208,4132.9,4132.6,2.41978415]
[1761671105570,0.1208,4132.9,4132.7,2.4197256]
[1761671105773,0.1208,4132.9,4132.6,0.30024889]
[1761671106082,0.1208,4132.9,4132.6,2.41977686]
[1761671106383,0.1208,4132.9,4132.3,1.5552]
[1761671106549,0.1208,4132.9,4132.2,1.676]
[1761671106753,0.1208,4132.9,4132.8,2.41966705]
[1761671107162,0.1208,4132.9,4132.6,2.41973122]
[1761671107412,0.1208,4132.9,4132.7,2.41968254]
[1761671107698,0.1208,4132.9,4132.6,0.48395853]
[1761671107864,0.001,4133.1,4133.0,2.41954996]
[1761671109967,0.001,4133.1,4133.0,2.44374545]
[1761671110167,0.001,4133.1,4133.0,2.41954996]
[1761671110390,0.001,4133.1,4133.0,2.90347166]
[1761671111000,0.001,4133.1,4133.0,2.92766715]
[1761671111512,0.001,4133.1,4133.0,6.73747166]
[1761671112295,0.001,4133.1,4133.0,4.57947166]
[1761671113796,0.001,4133.1,4133.0,6.73747166]
[1761671116975,0.001,4133.1,4133.0,0.1208]
[1761671117180,0.001,4133.1,4132.0,0.698]
[1761671117408,2.41976611,4132.7,4131.9,2.42018706]
[1761671117674,2.41987464,4132.5,4131.2,0.002]
[1761671117906,2.41987464,4132.5,4131.6,2.42031585]
[1761671118084,2.41987464,4132.5,4131.7,3.97548111]
[1761671118292,2.41987464,4132.5,4131.7,2.42028111]
[1761671118709,0.001,4133.1,4131.6,1.5552]
[1761671119009,0.001,4133.1,4132.3,2.41995554]
[1761671119214,2.42050982,4133.1,4132.4,2.41989778]
[1761671119376,0.001,4133.1,4131.9,2.42014212]
[1761671119581,2.41974369,4132.7,4131.8,2.4202108]
[1761671119780,0.001,4133.1,4131.7,1.93142]
[1761671120011,2.41974635,4132.7,4131.9,2.42017672]
[1761671120510,0.2158,4133.0,4131.8,0.002]
[1761671120717,0.001,4132.9,4131.8,0.002]
[1761671120930,2.42019409,4131.9,4131.8,0.002]
[1761671121084,2.157,4131.9,4131.8,0.002]
[1761671121412,5.034911,4131.9,4131.8,0.002]
[1761671121582,0.45771691,4131.9,4131.8,0.002]
[1761671121917,2.42019409,4131.9,4131.8,0.002]
[1761671123131,2.157,4132.0,4131.8,0.002]
[1761671123349,2.157,4132.1,4131.8,0.002]
[1761671123503,1.5562,4132.9,4131.8,0.002]
[1761671123705,2.3343,4132.8,4131.8,0.002]
[1761671123904,2.41997385,4132.3,4131.8,0.002]
[1761671124106,1.5552,4132.6,4131.8,0.002]
[1761671124503,2.42005317,4132.2,4131.8,0.002]
[1761671124814,2.41997386,4132.3,4131.8,0.002]
[1761671125335,2.3343,4132.8,4131.8,0.002]
[1761671125538,1.96583,4132.7,4131.8,0.002]
[1761671125708,2.41978546,4132.6,4131.9,2.42019034]
[1761671126034,2.41979421,4132.6,4131.9,2.42019409]
[1761671126239,4.57679421,4132.6,4131.9,2.42019409]
[1761671126611,2.157,4132.6,4131.8,0.002]
[1761671126838,2.157,4132.6,4131.9,2.42017771]
[1761671127226,0.1208,4132.0,4131.9,2.42017771]
[1761671128915,0.1208,4132.0,4131.8,2.42223372]
[1761671129644,0.1208,4132.0,4131.8,0.002]
[1761671130929,0.1208,4132.0,4131.9,2.42019409]
[1761671131444,0.1208,4132.0,4131.8,2.42224461]
[1761671131630,0.1208,4132.0,4131.8,0.002]
[1761671131835,0.1208,4132.0,4131.9,2.42019409]
[1761671132538,0.001,4132.9,4131.9,0.70004926]
[1761671132747,0.1208,4132.4,4132.0,0.02420135]
[1761671132934,0.001,4132.9,4132.2,1.676]
[1761671133247,0.001,4132.9,4132.8,2.41966705]
[1761671133445,0.001,4132.9,4132.8,6.13286705]
[1761671133624,0.001,4132.9,4132.8,7.10892794]
[1761671138870,0.001,4132.9,4132.8,3.97486705]
[1761671139671,0.001,4132.9,4132.8,6.13186705]
[1761671142065,0.001,4132.9,4132.8,2.157]
[1761671142269,0.001,4132.9,4132.8,4.57666705]
[1761671142777,0.001,4132.9,4132.8,2.41966705]
[1761671143138,0.001,4132.9,4132.6,2.4197607]
[1761671143338,0.001,4132.9,4132.6,4.5767607]
[1761671143534,0.001,4132.9,4132.6,2.4197607]
[1761671144274,0.001,4132.9,4132.0,2.4200804]
[1761671144439,0.001,4132.9,4132.3,2.41991739]
[1761671144875,0.001,4132.9,4132.4,2.41988997]
[1761671145477,0.001,4132.9,4132.3,2.41995982]
[1761671145678,0.001,4132.9,4132.4,2.4198939]
[1761671145877,0.001,4132.9,4132.3,2.4199487]
[1761671146263,0.001,4132.9,4132.2,2.41997511]
[1761671146479,0.001,4132.9,4132.3,2.41995902]
[1761671147073,0.48509942,4132.9,4131.8,0.002]
[1761671147383,0.48509942,4132.9,4132.4,2.41989873]
[1761671147587,0.001,4132.9,4132.4,2.41989873]
[1761671147884,0.001,4132.9,4132.3,2.41994908]
[1761671148083,0.001,4132.9,4132.4,2.41989781]
[1761671148580,0.001,4132.9,4132.5,2.41981447]
[1761671148782,0.1208,4132.7,4132.5,2.41981447]
[1761671149780,0.1208,4132.7,4132.2,2.157]
[1761671149949,0.1208,4132.7,4132.3,0.25197959]
[1761671150151,0.1208,4132.7,4132.6,2.41978415]
[1761671151284,0.001,4132.9,4132.6,2.41978415]
[1761671151688,0.001,4132.9,4132.8,2.41966705]
[1761671153194,0.001,4132.9,4132.7,2.4197226]
[1761671154183,0.001,4132.9,4132.6,2.157]
[1761671154980,0.001,4132.9,4132.7,2.41968489]
[1761671155389,0.001,4132.9,4132.7,2.41967717]
[1761671155577,0.001,4132.9,4132.6,2.157]
[1761671156194,0.001,4132.9,4132.8,2.41966705]
[1761671160732,0.001,4132.9,4132.8,18.05894796]
[1761671160902,0.001,4132.9,4132.8,17.93814796]
[1761671161405,0.001,4132.9,4132.8,6.13186705]
[1761671163088,0.001,4132.9,4132.8,6.53737105]
[1761671163292,0.001,4132.9,4132.8,7.45813652]
[1761671163812,0.001,4133.1,4132.8,7.45813652]
[1761671163813,0.001,4133.1,4133.0,2.82505396]
[1761671164016,0.001,4133.1,4133.0,4.38025396]
[1761671164524,0.001,4133.6,4133.5,2.41925728]
[1761671164692,0.001,4133.6,4133.5,20.65552691]
[1761671165035,0.001,4133.6,4133.5,22.7868436]
[1761671165544,0.001,4133.6,4133.5,23.1923476]
[1761671166401,0.01,4135.4,4133.7,4.37984423]
[1761671167138,0.01,4135.4,4133.7,4.40403563]
[1761671168412,0.01,4135.4,4133.7,4.37984423]
[1761671168753,0.01,4135.4,4133.7,6.73432104]
[1761671170844,0.01,4135.4,4133.7,9.01112104]
[1761671172145,0.1208,4135.0,4133.7,8.60561704]
[1761671173462,0.001,4134.3,4133.7,8.60561704]
[1761671174449,0.001,4134.3,4133.7,12.44561704]
[1761671179737,0.001,4134.3,4133.7,21.56456832]
[1761671179971,0.001,4134.3,4133.7,21.84927232]
[1761671180160,0.001,4134.3,4133.7,21.97007232]
[1761671180362,0.001,4134.3,4133.7,17.00409268]
[1761671182183,0.001,4134.3,4133.7,21.56356832]
[1761671182897,0.001,4134.3,4133.9,2.82452719]
[1761671183085,0.001,4134.3,4133.9,6.73627249]
[1761671183403,0.001,4134.3,4133.9,10.57627249]
[1761671189159,0.001,4134.3,4133.9,19.69522377]
[1761671190667,0.001,4134.3,4133.9,15.33004413]
[1761671190868,0.001,4134.3,4133.9,12.97349883]
[1761671191293,0.001,4134.3,4133.9,9.13349883]
[1761671191591,0.001,4134.3,4133.9,10.68869883]
[1761671191763,0.001,4134.3,4133.9,6.12922319]
[1761671196468,0.001,4134.3,4133.9,1.5552]
[1761671196812,2.41888915,4134.2,4133.6,2.157]
[1761671197026,0.24198892,4133.9,4133.6,0.002]
[1761671197172,0.52137762,4134.2,4133.6,0.002]
[1761671197370,2.41904018,4133.9,4133.6,0.002]
[1761671197794,2.94137604,4134.0,4133.6,0.002]
[1761671197996,2.41999842,4134.0,4133.6,0.002]
[1761671198220,2.41902813,4133.9,4133.6,0.002]
[1761671198426,0.29410419,4133.8,4133.6,0.002]
[1761671199981,0.001,4134.0,4133.6,0.002]
[1761671200188,0.001,4134.0,4133.9,2.41902319]
[1761671200717,0.001,4134.0,4133.9,2.53982319]
[1761671200915,0.001,4134.0,4133.9,2.2758]
[1761671201220,0.001,4134.0,4133.9,4.69482319]
[1761671202207,0.001,4134.0,4133.9,5.40641597]
[1761671202506,0.001,4134.0,4133.9,4.69482319]
[1761671205822,0.001,4134.0,4133.6,0.002]
[1761671206321,0.1208,4133.9,4133.6,0.002]
[1761671206527,0.1208,4133.9,4133.6,2.42118692]
[1761671206825,0.1208,4133.9,4133.7,2.41912749]
[1761671207628,0.001,4134.0,4133.9,2.41902319]
[1761671208846,0.001,4134.0,4133.8,2.2758]
[1761671209027,0.001,4134.0,4133.9,2.41902319]
[1761671212526,0.001,4134.0,4133.9,6.25902319]
[1761671213741,0.001,4134.0,4133.9,2.41902319]
[1761671213948,0.001,4134.0,4133.8,2.155]
[1761671214241,0.001,4134.0,4133.6,0.002]
[1761671214442,0.1208,4133.9,4133.6,0.002]
[1761671215410,0.1208,4133.9,4133.6,2.42119449]
[1761671216250,0.1208,4133.9,4133.7,2.41913673]
[1761671216733,0.1208,4133.9,4133.6,2.42119533]
[1761671217749,0.001,4134.0,4133.6,2.42119533]
[1761671217750,0.001,4134.0,4133.6,0.002]
[1761671218252,0.24199449,4133.9,4133.6,0.002]
[1761671218833,0.001,4134.0,4133.6,0.002]
[1761671220145,2.41997173,4134.0,4133.6,0.002]
[1761671220335,0.52158828,4134.0,4133.6,0.002]
[1761671220534,0.001,4134.0,4133.6,0.002]
[1761671221254,2.41996737,4134.0,4133.6,0.002]
[1761671221548,0.36664707,4133.9,4133.6,0.002]
[1761671221854,0.001,4134.0,4133.9,2.41902319]
[1761671223462,0.001,4134.0,4133.7,4.56287381]
[1761671223633,0.001,4134.0,4133.8,2.4190529]
[1761671223963,0.001,4134.0,4133.9,4.59821342]
[1761671224137,0.001,4134.0,4133.9,4.57402319]
[1761671224343,0.001,4134.0,4133.9,5.28561855]
[1761671225830,0.001,4134.0,4133.9,6.96161855]
[1761671231028,0.001,4134.0,4133.9,10.80161855]
[1761671233159,0.001,4134.0,4133.9,6.96161855]
[1761671233569,0.001,4134.0,4133.9,5.40641855]
[1761671234840,0.001,4134.0,4133.9,6.96061855]
[1761671235874,0.001,4134.0,4133.9,4.80661855]
[1761671236076,0.001,4134.0,4133.9,0.1208]
[1761671236276,0.001,4134.0,4133.6,0.002]
[1761671236676,2.41914023,4133.7,4133.6,0.002]
[1761671236985,2.5158255,4133.9,4133.6,0.002]
[1761671237184,0.09679476,4133.9,4133.6,0.002]
[1761671237512,2.41914023,4133.7,4133.6,0.002]
[1761671237876,2.72280098,4133.8,4133.6,0.002]
[1761671238809,0.09679476,4133.9,4133.6,0.002]
[1761671239027,0.001,4134.0,4133.6,0.002]
[1761671239235,0.09779476,4134.0,4133.6,0.002]
[1761671239405,0.001,4134.0,4133.7,2.41913822]
[1761671239726,0.001,4134.0,4133.6,0.002]
[1761671239939,0.001,4134.0,4133.7,2.41914023]
[1761671240122,0.001,4134.0,4133.6,0.002]
[1761671240627,0.001,4134.0,4133.6,2.42114649]
[1761671241593,0.001,4134.0,4133.7,2.41912026]
[1761671242602,0.001,4134.0,4133.8,2.41908171]
[1761671243900,0.001,4134.0,4133.7,2.41912992]
[1761671245711,0.001,4134.0,4133.7,2.41914023]
[1761671246235,0.1208,4133.9,4133.7,2.41912533]
[1761671246440,0.1208,4133.9,4133.6,0.002]
[1761671246656,0.001,4134.0,4133.7,0.45752445]
[1761671246806,0.001,4134.0,4133.6,0.002]
[1761671247327,0.001,4134.0,4133.7,2.41912704]
[1761671247705,0.001,4134.0,4133.6,2.42119443]
[1761671247909,0.001,4134.0,4133.9,2.41902319]
[1761671248322,0.001,4134.0,4133.6,0.002]
[1761671248839,0.001,4134.0,4133.7,2.41914023]
[1761671249243,0.001,4134.0,4133.8,2.41904856]
[1761671249636,0.001,4134.0,4133.9,2.41902319]
[1761671249946,0.001,4134.0,4133.8,2.41907404]
[1761671250848,0.001,4134.0,4133.9,2.41902319]
[1761671251246,0.001,4134.0,4133.6,2.42118764]
[1761671251542,0.001,4134.0,4133.8,2.41908171]
[1761671251742,0.001,4134.0,4133.6,2.42118764]
[1761671251949,0.001,4134.0,4133.6,0.002]
[1761671252154,0.001,4134.0,4133.7,2.41910265]
[1761671252355,0.1208,4133.9,4133.6,0.002]
[1761671253960,0.1208,4133.9,4133.6,2.42117772]
[1761671254371,0.1208,4133.9,4133.7,2.41913997]
[1761671254742,0.1208,4133.9,4133.6,0.002]
[1761671255772,0.1208,4133.9,4133.7,2.41913985]
[1761671256356,0.1208,4133.9,4133.6,2.4211938]
[1761671256538,0.1208,4133.9,4133.6,0.002]
[1761671256738,0.1208,4133.9,4133.6,2.4211857]
[1761671257048,0.1208,4133.9,4133.7,2.41913509]
[1761671257444,0.1208,4133.9,4133.6,0.002]
[1761671258852,0.1208,4133.9,4133.6,2.42119621]
[1761671261675,0.1208,4133.9,4133.6,0.002]
[1761671264762,0.1208,4133.9,4133.6,2.42118764]
[1761671264968,0.1208,4133.9,4133.6,0.002]
[1761671265198,0.1208,4133.9,4133.7,2.41910257]
[1761671265390,0.001,4134.0,4133.8,2.41908171]
[1761671265555,0.001,4134.0,4133.9,2.41902319]
[1761671265753,0.001,4134.0,4133.9,8.23383177]
[1761671265959,0.001,4134.0,4133.9,9.78903177]
[1761671274995,0.001,4134.0,4133.6,0.002]
[1761671275294,0.001,4134.0,4133.7,2.153]
[1761671275499,0.001,4134.0,4133.6,1.5572]
[1761671275685,2.66206232,4134.0,4133.6,0.002]
[1761671275878,0.1208,4133.9,4133.6,0.002]
[1761671276279,2.53983797,4133.9,4133.6,0.002]
[1761671276685,0.1208,4133.9,4133.6,0.002]
[1761671277211,2.4191302,4133.8,4133.6,0.002]
[1761671277503,0.49599063,4133.7,4133.6,0.002]
[1761671278670,2.91513086,4133.7,4133.6,0.002]
[1761671278906,1.01713563,4133.7,4133.6,0.002]
[1761671279290,0.49599063,4133.7,4133.6,0.002]
[1761671279491,0.64186763,4133.9,4133.6,0.002]
[1761671279695,0.1208,4133.9,4133.6,0.002]
[1761671279907,2.53987391,4133.9,4133.6,0.002]
[1761671280250,2.41914023,4133.7,4133.6,0.002]
[1761671280771,5.09320786,4133.7,4133.6,0.002]
[1761671280991,5.9214675,4133.7,4133.6,0.002]
[1761671281285,1.34932727,4133.7,4133.6,0.002]
[1761671281616,0.001,4134.0,4133.6,0.002]
[1761671281813,0.52206763,4134.0,4133.6,0.002]
[1761671282013,2.41997008,4134.0,4133.6,0.002]
[1761671282373,0.001,4134.0,4133.6,0.002]
[1761671283090,2.41907698,4133.9,4133.6,0.002]
[1761671283289,0.50941446,4133.9,4133.6,0.002]
[1761671283810,0.001,4134.0,4133.6,0.002]
[1761671284031,0.001,4134.0,4133.7,2.41914023]
[1761671284231,0.001,4134.0,4133.6,2.42118734]
[1761671284434,0.001,4134.0,4133.8,2.41907626]
[1761671285298,0.001,4134.0,4133.7,2.41913919]
[1761671285540,0.001,4134.0,4133.6,0.002]
[1761671285943,0.001,4134.0,4133.7,2.41911796]
[1761671286441,0.001,4134.0,4133.9,2.41902319]
[1761671286653,0.001,4134.0,4133.9,2.44321342]
[1761671286812,0.001,4134.0,4133.9,2.41902319]
[1761671287517,0.001,4134.0,4133.9,3.97422319]
[1761671291336,0.001,4134.0,4133.9,4.09502319]
[1761671291551,0.001,4134.0,4133.9,6.24802319]
[1761671293150,0.001,4134.0,4133.9,3.829]
[1761671293554,0.001,4134.0,4133.9,6.24802319]
[1761671293738,0.001,4134.0,4133.9,2.53982319]
[1761671297859,0.001,4134.0,4133.9,8.65787481]
[1761671298173,0.001,4134.0,4133.9,4.09502319]
[1761671298324,0.001,4134.0,4133.9,5.912009]
[1761671298648,0.001,4134.0,4133.9,10.35406062]
[1761671298827,0.001,4134.0,4133.9,10.47486062]
[1761671299834,0.001,4134.0,4133.9,14.31486062]
[1761671303059,0.001,4134.3,4134.2,2.41884766]
[1761671303371,0.001,4134.3,4134.2,11.20448243]
[1761671303728,0.001,4134.3,4134.2,11.32528243]
[1761671304148,0.001,4134.5,4134.4,2.41873065]
[1761671304348,0.1208,4135.7,4134.5,2.41867214]
[1761671304548,0.1208,4135.7,4134.6,10.80946527]
[1761671304742,0.1208,4135.7,4134.6,11.48296487]
[1761671307233,0.1208,4135.7,4134.6,16.04581649]
[1761671307772,0.001,4135.8,4134.8,2.41849666]
[1761671308750,0.001,4135.2,4134.8,2.41849666]
[1761671309442,0.001,4135.2,4134.8,6.25849666]
[1761671311706,0.001,4135.2,4134.8,3.84]
[1761671311991,0.001,4135.2,4134.8,14.52854828]
[1761671312350,0.001,4135.2,4134.8,16.35614147]
[1761671314182,0.001,4135.2,4134.8,16.23534147]
[1761671314342,0.001,4135.2,4134.8,16.35614147]
[1761671314549,0.001,4135.2,4134.8,12.51614147]
[1761671316282,0.001,4135.2,4134.8,10.36414147]
[1761671316494,0.001,4135.2,4134.8,8.65734828]
[1761671316697,0.001,4135.2,4134.8,10.80834828]
[1761671322464,0.001,4135.2,4134.8,15.7767039]
[1761671322653,0.001,4135.2,4134.8,11.21385228]
[1761671322860,0.001,4135.2,4134.8,12.57709587]
[1761671324054,0.001,4135.2,4134.8,17.13994749]
[1761671324457,0.001,4135.2,4134.8,5.45774025]
[1761671324687,0.001,4135.2,4134.8,10.80834828]
[1761671333184,0.001,4135.2,4134.8,8.65734828]
[1761671333396,0.001,4135.2,4134.8,10.80834828]
[1761671334180,0.001,4135.2,4134.7,2.151]
[1761671334503,0.1208,4135.1,4134.8,6.98134828]
[1761671334701,0.001,4135.2,4134.8,6.98134828]
[1761671334900,0.001,4135.2,4134.8,4.56285162]
[1761671335210,0.001,4135.2,4134.8,6.98134828]
[1761671336414,0.001,4135.2,4134.8,4.56285162]
[1761671336576,0.001,4135.2,4134.8,6.98134828]
[1761671340426,0.001,4135.2,4134.8,4.56285162]
[1761671340817,0.001,4135.2,4134.8,6.71385162]
[1761671340998,0.001,4135.2,4134.8,9.13234828]
[1761671342630,0.001,4135.2,4134.8,10.68372239]
[1761671342812,0.001,4135.2,4134.8,9.13234828]
[1761671345730,0.001,4135.2,4134.8,4.56949666]
[1761671346232,0.001,4135.2,4134.7,3.84]
[1761671346233,2.41838753,4135.0,4134.7,3.84]
[1761671346435,0.1208,4135.0,4134.7,3.84]
[1761671346834,0.72570081,4135.1,4134.8,8.23214125]
[1761671347033,0.001,4135.2,4134.8,8.23214125]
[1761671347963,0.001,4135.2,4134.8,10.02939637]
[1761671351756,0.09674232,4135.1,4134.8,10.02939637]
[1761671354038,0.001,4135.2,4134.8,11.58459637]
[1761671354483,0.09774232,4135.2,4134.8,11.58459637]
[1761671362588,1e-08,4135.4,4135.0,0.405504]
[1761671362759,1e-08,4135.4,4135.3,9.78704883]
[1761671364273,1e-08,4135.4,4135.3,9.90647847]
[1761671364457,1e-08,4135.4,4135.3,11.462034]
[1761671365170,0.001,4135.6,4135.5,2.82359129]